fUST/lending_fUST_20250317
["ID","MTS","AMOUNT","RATE_DAILY","PERIOD"]
[356278630,1742176232115,-500.0,8.219e-05,2]
[356278631,1742176232125,-502.82668731,8.219e-05,2]
[356278632,1742176232135,-500.0,8.219e-05,2]
[356278633,1742176232145,-500.0,8.219e-05,2]
[356278634,1742176232154,-500.0,8.219e-05,2]
[356278635,1742176232165,-671.34,8.219e-05,2]
[356278636,1742176232176,-509.32026061,8.219e-05,2]
[356278637,1742176232186,-500.0,8.219e-05,2]
[356278638,1742176232195,-500.0,8.219e-05,2]
[356278641,1742176232206,-500.0,8.219e-05,2]
[356278643,1742176232227,-372.58303823,8.219e-05,2]
[356278646,1742176232250,-127.41696177,8.219e-05,2]
[356278649,1742176232260,-500.0,8.219e-05,2]
[356278651,1742176232270,-500.0,8.219e-05,2]
[356278653,1742176232280,-500.0,8.219e-05,2]
[356278655,1742176232290,-500.0,8.219e-05,2]
[356278657,1742176232300,-500.0,8.219e-05,2]
[356278659,1742176232310,-500.0,8.219e-05,2]
[356278661,1742176232320,-652.48,8.219e-05,2]
[356278663,1742176232330,-500.0,8.219e-05,2]
[356278665,1742176232340,-804.65,8.219e-05,2]
[356278667,1742176232349,-516.54222648,8.219e-05,2]
[356278669,1742176232359,-500.0,8.219e-05,2]
[356278671,1742176232369,-500.0,8.219e-05,2]
[356278673,1742176232379,-500.0,8.219e-05,2]
[356278675,1742176232389,-500.0,8.219e-05,2]
[356278677,1742176232399,-526.70019507,8.219e-05,2]
[356278679,1742176232410,-500.0,8.219e-05,2]
[356278681,1742176232420,-500.0,8.219e-05,2]
[356278684,1742176232430,-500.0,8.219e-05,2]
[356278686,1742176232440,-500.0,8.219e-05,2]
[356278688,1742176232451,-514.35145651,8.219e-05,2]
[356278690,1742176232461,-500.0,8.219e-05,2]
[356278692,1742176232471,-500.0,8.219e-05,2]
[356278694,1742176232480,-548.25109539,8.219e-05,2]
[356278696,1742176232490,-500.0,8.219e-05,2]
[356278698,1742176232500,-500.0,8.219e-05,2]
[356278700,1742176232510,-535.22167702,8.219e-05,2]
[356278702,1742176232520,-500.0,8.219e-05,2]
[356278703,1742176232530,-517.80781401,8.219e-05,2]
[356278704,1742176232539,-500.0,8.219e-05,2]
[356278705,1742176232549,-500.0,8.219e-05,2]
[356278706,1742176232559,-523.46173447,8.219e-05,2]
[356278707,1742176232568,-500.0,8.219e-05,2]
[356278708,1742176232579,-500.0,8.219e-05,2]
[356278709,1742176232589,-5473.84,8.219e-05,2]
[356278710,1742176232600,-608.17869404,8.219e-05,2]
[356278711,1742176232609,-1662.32,8.219e-05,2]
[356278712,1742176232619,-4116.63,8.219e-05,2]
[356278713,1742176232630,-500.0,8.219e-05,2]
[356278714,1742176232640,-1695.59072388,8.219e-05,2]
[356278715,1742176232654,-1215.76927612,8.219e-05,2]
[356278716,1742176232663,-588.53,8.219e-05,2]
[356278717,1742176232673,-500.0,8.219e-05,2]
[356278718,1742176232684,-11835.51,8.219e-05,2]
[356278719,1742176232693,-1868.92,8.219e-05,2]
[356278720,1742176232703,-641.78,8.219e-05,2]
[356278721,1742176232713,-500.0,8.219e-05,2]
[356278722,1742176232723,-500.0,8.219e-05,2]
[356278723,1742176232733,-1.50205562,8.219e-05,2]
[356278724,1742176232746,-498.49794438,8.219e-05,2]
[356278725,1742176232756,-275.2636519,8.219e-05,2]
[356278726,1742176232767,-1346.67,8.219e-05,2]
[356278727,1742176232777,-572.64,8.219e-05,2]
[356278728,1742176232787,-500.0,8.219e-05,2]
[356278729,1742176232797,-2703.83,8.219e-05,2]
[356278730,1742176232807,-21330.60224059,8.219e-05,2]
[356278731,1742176233056,-266.53666222,8.219e-05,2]
[356278743,1742176237840,-634.90314799,8.219e-05,2]
[356278744,1742176237852,-18438.88078534,8.219e-05,2]
[356278745,1742176237930,-11557.3599256,8.219e-05,2]
[356278746,1742176237943,-22073.8807692,8.219e-05,2]
[356278747,1742176237955,-4410.39522008,8.219e-05,2]
[356278748,1742176237967,-7965.06971346,8.219e-05,2]
[356278749,1742176237978,-3782.50501255,8.219e-05,2]
[356278750,1742176237989,-6970.87960091,8.219e-05,2]
[356278788,1742176242992,-5469.04701445,8.219e-05,2]
[356278842,1742176245986,-851.62567513,8.219e-05,2]
[356280461,1742176565824,150.390419,0.00014,30]
[356280462,1742176993373,155.332097,0.00014,30]
[356280465,1742177383800,-150.0,8.018e-05,2]
[356280466,1742177406885,-200.0,0.00017056,120]
[356280467,1742177408619,-200.0,0.0001714,120]
[356280468,1742177410290,-200.0,0.00017411,120]
[356280756,1742177443261,-61.23850301,8.018e-05,2]
[356280759,1742177443273,-500.0,8.118e-05,2]
[356280761,1742177443282,-297.95176889,8.118e-05,2]
[356280763,1742177443291,-192.3554028,8.118e-05,2]
[356280765,1742177443301,-300.0,8.118e-05,2]
[356280767,1742177443311,-3878.44963966,8.119e-05,2]
[356280780,1742177443465,-3429.01857835,8.119e-05,2]
[356280902,1742177446342,-3969.40402657,8.119e-05,2]
[356280908,1742177446399,-4325.0,8.119e-05,2]
[356285191,1742177492387,3502.649891,7.408e-05,2]
[356286051,1742177703096,-150.0,8.018e-05,2]
[356286052,1742177764357,-300.0,8.018e-05,2]
[356286053,1742177824042,-185.92998802,8.018e-05,2]
[356286054,1742177834643,510.60147674,8.001e-05,2]
[356286055,1742177883038,-300.0,8.018e-05,2]
[356286056,1742178018307,6273.1148903,7.397e-05,2]
[356286058,1742178386199,40567.3749352,0.00014,30]
[356286065,1742178630553,182.05027406,8.001e-05,2]
[356286082,1742178632429,-300.0,8.018e-05,2]
[356286083,1742178632439,-43614.90193187,8.019e-05,2]
[356286084,1742178632449,-151.63752429,8.218e-05,2]
[356286085,1742178632458,-558.56623823,8.218e-05,2]
[356286086,1742178632467,-500.0,8.219e-05,2]
[356286087,1742178632477,-500.0,8.219e-05,2]
[356286088,1742178632486,-500.0,8.219e-05,2]
[356286089,1742178632495,-500.0,8.219e-05,2]
[356286090,1742178632505,-507.94158284,8.219e-05,2]
[356286091,1742178632515,-500.0,8.219e-05,2]
[356286092,1742178632524,-517.71770826,8.219e-05,2]
[356286093,1742178632534,-510.09847577,8.219e-05,2]
[356286094,1742178632543,-500.0,8.219e-05,2]
[356286095,1742178632552,-511.02998515,8.219e-05,2]
[356286096,1742178632561,-500.0,8.219e-05,2]
[356286097,1742178632571,-517.33563981,8.219e-05,2]
[356286098,1742178632580,-507.8141208,8.219e-05,2]
[356286099,1742178632589,-507.65026324,8.219e-05,2]
[356286100,1742178632599,-500.0,8.219e-05,2]
[356286101,1742178632608,-591.94503877,8.219e-05,2]
[356286102,1742178632617,-625.3,8.219e-05,2]
[356286103,1742178632627,-771.12,8.219e-05,2]
[356286104,1742178632636,-500.0,8.219e-05,2]
[356286105,1742178632645,-448.10249662,8.219e-05,2]
[356286106,1742178632655,-500.0,8.219e-05,2]
[356286107,1742178632665,-500.0,8.219e-05,2]
[356286108,1742178632675,-500.0,8.219e-05,2]
[356286109,1742178632685,-515.54765652,8.219e-05,2]
[356286110,1742178632694,-500.0,8.219e-05,2]
[356286111,1742178632703,-500.0,8.219e-05,2]
[356286112,1742178632713,-187.31063933,8.219e-05,2]
[356286113,1742178632724,-500.0,8.219e-05,2]
[356286114,1742178632733,-585.12027731,8.219e-05,2]
[356286115,1742178632742,-500.0,8.219e-05,2]
[356286116,1742178632752,-500.0,8.219e-05,2]
[356286117,1742178632761,-500.0,8.219e-05,2]
[356286118,1742178632770,-500.0,8.219e-05,2]
[356286119,1742178632780,-500.0,8.219e-05,2]
[356286120,1742178632790,-500.0,8.219e-05,2]
[356286121,1742178632799,-500.0,8.219e-05,2]
[356286122,1742178632807,-500.0,8.219e-05,2]
[356286123,1742178632817,-500.0,8.219e-05,2]
[356286124,1742178632826,-500.0,8.219e-05,2]
[356286125,1742178632836,-500.0,8.219e-05,2]
[356286126,1742178632845,-230.92760367,8.219e-05,2]
[356286127,1742178632855,-633.44393689,8.219e-05,2]
[356286128,1742178632874,-500.0,8.219e-05,2]
[356286129,1742178632885,-500.0,8.219e-05,2]
[356286130,1742178632895,-500.0,8.219e-05,2]
[356286131,1742178632904,-500.0,8.219e-05,2]
[356286132,1742178632914,-500.0,8.219e-05,2]
[356286133,1742178632925,-500.0,8.219e-05,2]
[356286134,1742178632935,-5245.76,8.219e-05,2]
[356286135,1742178632944,-4916.68,8.219e-05,2]
[356286136,1742178632954,-2277.55,8.219e-05,2]
[356286137,1742178632963,-500.0,8.219e-05,2]
[356286138,1742178632973,-3945.1,8.219e-05,2]
[356286139,1742178632983,-500.0,8.219e-05,2]
[356286140,1742178632992,-500.0,8.219e-05,2]
[356286141,1742178633002,-1791.05,8.219e-05,2]
[356286142,1742178633012,-7751.52,8.219e-05,2]
[356286143,1742178633022,-500.0,8.219e-05,2]
[356286144,1742178633032,-2790.05,8.219e-05,2]
[356286145,1742178633042,-500.0,8.219e-05,2]
[356286146,1742178633052,-500.0,8.219e-05,2]
[356286147,1742178633062,-564.01,8.219e-05,2]
[356286148,1742178633073,-123947.42,8.219e-05,2]
[356286149,1742178633083,-277.34888063,8.219e-05,2]
[356286162,1742178638115,-337.69111937,8.219e-05,2]
[356286163,1742178638124,-500.0,8.219e-05,2]
[356286164,1742178638134,-512.36074957,8.219e-05,2]
[356286165,1742178638144,-500.0,8.219e-05,2]
[356286166,1742178638154,-3633.33,8.219e-05,2]
[356286167,1742178638163,-548.78,8.219e-05,2]
[356286168,1742178638173,-500.0,8.219e-05,2]
[356286169,1742178638183,-361.86127337,8.219e-05,2]
[356286170,1742178638196,-138.13872663,8.219e-05,2]
[356286171,1742178638206,-500.0,8.219e-05,2]
[356286172,1742178638215,-2591.17,8.219e-05,2]
[356286173,1742178638224,-500.0,8.219e-05,2]
[356286174,1742178638233,-5986.12,8.219e-05,2]
[356286175,1742178638245,-5731.87,8.219e-05,2]
[356286176,1742178638254,-500.0,8.219e-05,2]
[356286177,1742178638264,-8760.36,8.219e-05,2]
[356286178,1742178638273,-500.0,8.219e-05,2]
[356286179,1742178638282,-500.0,8.219e-05,2]
[356286180,1742178638291,-7946.78,8.219e-05,2]
[356286181,1742178638301,-500.0,8.219e-05,2]
[356286182,1742178638310,-881.03,8.219e-05,2]
[356286183,1742178638319,-500.0,8.219e-05,2]
[356286184,1742178638328,-608.79136197,8.219e-05,2]
[356286185,1742178638338,-500.0,8.219e-05,2]
[356286186,1742178638347,-1920.2,8.219e-05,2]
[356286187,1742178638356,-718.46,8.219e-05,2]
[356286188,1742178638366,-500.0,8.219e-05,2]
[356286189,1742178638375,-500.0,8.219e-05,2]
[356286190,1742178638384,-892.59,8.219e-05,2]
[356286191,1742178638394,-765.13,8.219e-05,2]
[356286192,1742178638404,-504.06908303,8.219e-05,2]
[356286193,1742178638413,-500.0,8.219e-05,2]
[356286194,1742178638423,-800.44,8.219e-05,2]
[356286195,1742178638432,-500.0,8.219e-05,2]
[356286196,1742178638441,-500.0,8.219e-05,2]
[356286197,1742178638450,-1191.41,8.219e-05,2]
[356286198,1742178638460,-500.0,8.219e-05,2]
[356286199,1742178638469,-500.0,8.219e-05,2]
[356286200,1742178638478,-500.0,8.219e-05,2]
[356286201,1742178638487,-500.0,8.219e-05,2]
[356286202,1742178638496,-500.0,8.219e-05,2]
[356286203,1742178638506,-500.0,8.219e-05,2]
[356286204,1742178638515,-243.61475118,8.219e-05,2]
[356286205,1742178638525,-3821.59,8.219e-05,2]
[356286206,1742178638535,-500.0,8.219e-05,2]
[356286207,1742178638544,-758.2,8.219e-05,2]
[356286208,1742178638553,-500.0,8.219e-05,2]
[356286209,1742178638563,-500.0,8.219e-05,2]
[356286210,1742178638572,-1202.97,8.219e-05,2]
[356286211,1742178638582,-11342.36,8.219e-05,2]
[356286212,1742178638591,-661.08,8.219e-05,2]
[356286213,1742178638601,-500.0,8.219e-05,2]
[356286214,1742178638610,-674.14,8.219e-05,2]
[356286215,1742178638620,-500.0,8.219e-05,2]
[356286216,1742178638629,-500.0,8.219e-05,2]
[356286217,1742178638638,-1290.56,8.219e-05,2]
[356286218,1742178638648,-500.0,8.219e-05,2]
[356286219,1742178638657,-1460.7,8.219e-05,2]
[356286220,1742178638667,-2349.57,8.219e-05,2]
[356286221,1742178638677,-500.0,8.219e-05,2]
[356286222,1742178638687,-500.0,8.219e-05,2]
[356286223,1742178638696,-587.7,8.219e-05,2]
[356286224,1742178638707,-500.0,8.219e-05,2]
[356286225,1742178638717,-500.0,8.219e-05,2]
[356286226,1742178638727,-833.89138366,8.301e-05,2]
[356286227,1742178638736,-417.81762827,8.301e-05,2]
[356286228,1742178638746,-160.0,8.301e-05,2]
[356286229,1742178638756,-160.0,8.301e-05,2]
[356286230,1742178638765,-12458.93820146,8.301e-05,2]
[356286231,1742178638775,-1917.216,8.373e-05,2]
[356286232,1742178638784,-541.0,8.373e-05,2]
[356286233,1742178638794,-2267.0,8.373e-05,2]
[356286234,1742178638804,-796.85944493,8.382e-05,2]
[356286235,1742178638813,-150.048,8.383e-05,2]
[356286236,1742178638823,-150.0,8.383e-05,2]
[356286237,1742178638833,-189.846,8.438e-05,2]
[356286238,1742178638843,-172.72040909,8.493e-05,2]
[356286239,1742178638852,-500.0,8.493e-05,2]
[356286240,1742178638861,-500.0,8.493e-05,2]
[356286241,1742178638874,-500.0,8.493e-05,2]
[356286242,1742178638883,-500.0,8.493e-05,2]
[356286243,1742178638894,-324.5951731,8.493e-05,2]
[356286244,1742178638904,-625.3,8.493e-05,2]
[356286245,1742178638913,-771.12,8.493e-05,2]
[356286246,1742178638923,-500.0,8.493e-05,2]
[356286247,1742178638932,-524.62788007,8.493e-05,2]
[356286248,1742178638941,-551.78925604,8.493e-05,2]
[356286249,1742178638951,-599.15362344,8.493e-05,2]
[356286250,1742178638960,-160.29237685,8.493e-05,2]
[356286251,1742178638969,-500.0,8.493e-05,2]
[356286252,1742178638979,-500.0,8.493e-05,2]
[356286253,1742178638988,-500.0,8.493e-05,2]
[356286254,1742178638998,-151.0,8.493e-05,2]
[356286255,1742178639007,-500.0,8.493e-05,2]
[356286256,1742178639016,-151.0,8.493e-05,2]
[356286257,1742178639025,-500.0,8.493e-05,2]
[356286258,1742178639035,-500.0,8.493e-05,2]
[356286259,1742178639044,-500.0,8.493e-05,2]
[356286260,1742178639054,-500.0,8.493e-05,2]
[356286261,1742178639064,-500.0,8.493e-05,2]
[356286262,1742178639073,-500.0,8.493e-05,2]
[356286263,1742178639082,-500.0,8.493e-05,2]
[356286264,1742178639091,-500.0,8.493e-05,2]
[356286265,1742178639103,-500.0,8.493e-05,2]
[356286266,1742178639113,-500.0,8.493e-05,2]
[356286267,1742178639123,-500.0,8.493e-05,2]
[356286268,1742178639132,-500.0,8.493e-05,2]
[356286269,1742178639142,-500.0,8.493e-05,2]
[356286270,1742178639166,-348.25041877,8.493e-05,2]
[356286271,1742178639178,-500.0,8.493e-05,2]
[356286272,1742178639188,-5245.76,8.493e-05,2]
[356286273,1742178639197,-4916.68,8.493e-05,2]
[356286274,1742178639208,-2277.55,8.493e-05,2]
[356286275,1742178639218,-500.0,8.493e-05,2]
[356286276,1742178639227,-3945.1,8.493e-05,2]
[356286277,1742178639237,-500.0,8.493e-05,2]
[356286278,1742178639247,-500.0,8.493e-05,2]
[356286279,1742178639257,-1791.05,8.493e-05,2]
[356286280,1742178639267,-7751.52,8.493e-05,2]
[356286281,1742178639276,-500.0,8.493e-05,2]
[356286282,1742178639285,-2790.05,8.493e-05,2]
[356286283,1742178639295,-201.12348499,8.493e-05,2]
[356286284,1742178639304,-500.0,8.493e-05,2]
[356286285,1742178639314,-564.01,8.493e-05,2]
[356286286,1742178639325,-123947.42,8.493e-05,2]
[356286287,1742178639334,-615.04,8.493e-05,2]
[356286288,1742178639344,-500.0,8.493e-05,2]
[356286289,1742178639353,-500.0,8.493e-05,2]
[356286290,1742178639363,-3633.33,8.493e-05,2]
[356286291,1742178639372,-548.78,8.493e-05,2]
[356286292,1742178639383,-500.0,8.493e-05,2]
[356286293,1742178639392,-500.0,8.493e-05,2]
[356286294,1742178639402,-500.0,8.493e-05,2]
[356286295,1742178639411,-2591.17,8.493e-05,2]
[356286296,1742178639421,-297.0914191,8.493e-05,2]
[356286297,1742178639432,-5986.12,8.493e-05,2]
[356286298,1742178639442,-5731.87,8.493e-05,2]
[356286299,1742178639451,-500.0,8.493e-05,2]
[356286300,1742178639461,-8760.36,8.493e-05,2]
[356286301,1742178639472,-500.0,8.493e-05,2]
[356286302,1742178639481,-500.0,8.493e-05,2]
[356286303,1742178639492,-7946.78,8.493e-05,2]
[356286304,1742178639502,-158.45267627,8.493e-05,2]
[356286305,1742178639511,-881.03,8.493e-05,2]
[356286306,1742178639521,-500.0,8.493e-05,2]
[356286307,1742178639530,-500.0,8.493e-05,2]
[356286308,1742178639540,-1920.2,8.493e-05,2]
[356286309,1742178639549,-718.46,8.493e-05,2]
[356286310,1742178639560,-500.0,8.493e-05,2]
[356286311,1742178639570,-500.0,8.493e-05,2]
[356286312,1742178639579,-892.59,8.493e-05,2]
[356286313,1742178639589,-765.13,8.493e-05,2]
[356286314,1742178639598,-500.0,8.493e-05,2]
[356286315,1742178639608,-800.44,8.493e-05,2]
[356286316,1742178639618,-500.0,8.493e-05,2]
[356286317,1742178639628,-500.0,8.493e-05,2]
[356286318,1742178639638,-1191.41,8.493e-05,2]
[356286319,1742178639648,-500.0,8.493e-05,2]
[356286320,1742178639658,-500.0,8.493e-05,2]
[356286321,1742178639667,-500.0,8.493e-05,2]
[356286322,1742178639678,-500.0,8.493e-05,2]
[356286323,1742178639687,-500.0,8.493e-05,2]
[356286324,1742178639697,-500.0,8.493e-05,2]
[356286325,1742178639707,-3821.59,8.493e-05,2]
[356286326,1742178639716,-532.77991102,8.493e-05,2]
[356286327,1742178639726,-758.2,8.493e-05,2]
[356286328,1742178639735,-500.0,8.493e-05,2]
[356286329,1742178639745,-500.0,8.493e-05,2]
[356286330,1742178639756,-1202.97,8.493e-05,2]
[356286332,1742178639766,-11342.36,8.493e-05,2]
[356286333,1742178639776,-661.08,8.493e-05,2]
[356286334,1742178639786,-500.0,8.493e-05,2]
[356286335,1742178639796,-674.14,8.493e-05,2]
[356286336,1742178639805,-502.26364922,8.493e-05,2]
[356286337,1742178639815,-500.0,8.493e-05,2]
[356286338,1742178639824,-1290.56,8.493e-05,2]
[356286339,1742178639834,-500.0,8.493e-05,2]
[356286340,1742178639844,-1460.7,8.493e-05,2]
[356286341,1742178639853,-2349.57,8.493e-05,2]
[356286342,1742178639863,-379.15380113,8.493e-05,2]
[356286343,1742178639873,-500.0,8.493e-05,2]
[356286344,1742178639882,-587.7,8.493e-05,2]
[356286345,1742178639892,-500.0,8.493e-05,2]
[356286346,1742178639902,-500.0,8.493e-05,2]
[356286347,1742178639912,-150.0,8.5e-05,2]
[356286348,1742178639922,-796.85944493,8.607e-05,2]
[356286349,1742178639933,-1000.0,8.72e-05,2]
[356286350,1742178639942,-514.17172155,8.767e-05,2]
[356286351,1742178639958,-43.21202572,8.767e-05,2]
[356286352,1742178639967,-500.0,8.767e-05,2]
[356286353,1742178639977,-583.90495111,8.767e-05,2]
[356286354,1742178639987,-500.0,8.767e-05,2]
[356286355,1742178639996,-625.3,8.767e-05,2]
[356286356,1742178640006,-771.12,8.767e-05,2]
[356286357,1742178640016,-500.0,8.767e-05,2]
[356286358,1742178640025,-441.35875237,8.767e-05,2]
[356286359,1742178640035,-500.0,8.767e-05,2]
[356286360,1742178640044,-514.61954153,8.767e-05,2]
[356286361,1742178640054,-151.0,8.767e-05,2]
[356286362,1742178640064,-151.0,8.767e-05,2]
[356286363,1742178640074,-500.0,8.767e-05,2]
[356286364,1742178640084,-500.0,8.767e-05,2]
[356286365,1742178640094,-500.0,8.767e-05,2]
[356286366,1742178640107,-500.0,8.767e-05,2]
[356286368,1742178640117,-500.0,8.767e-05,2]
[356286369,1742178640127,-500.0,8.767e-05,2]
[356286370,1742178640136,-500.0,8.767e-05,2]
[356286371,1742178640147,-500.0,8.767e-05,2]
[356286372,1742178640157,-500.0,8.767e-05,2]
[356286373,1742178640167,-500.0,8.767e-05,2]
[356286374,1742178640177,-256.70742962,8.767e-05,2]
[356286375,1742178640188,-551.66051367,8.767e-05,2]
[356286376,1742178640198,-500.0,8.767e-05,2]
[356286377,1742178640208,-500.0,8.767e-05,2]
[356286378,1742178640218,-500.0,8.767e-05,2]
[356286379,1742178640231,-5245.76,8.767e-05,2]
[356286380,1742178640241,-4916.68,8.767e-05,2]
[356286381,1742178640251,-2277.55,8.767e-05,2]
[356286382,1742178640260,-500.0,8.767e-05,2]
[356286383,1742178640270,-3945.1,8.767e-05,2]
[356286385,1742178640280,-500.0,8.767e-05,2]
[356286386,1742178640290,-500.0,8.767e-05,2]
[356286387,1742178640300,-1791.05,8.767e-05,2]
[356286388,1742178640310,-7751.52,8.767e-05,2]
[356286389,1742178640319,-500.0,8.767e-05,2]
[356286390,1742178640329,-2790.05,8.767e-05,2]
[356286391,1742178640338,-500.0,8.767e-05,2]
[356286392,1742178640348,-564.01,8.767e-05,2]
[356286393,1742178640358,-59516.63439915,8.767e-05,2]
[356286439,1742178643319,-511.41258676,8.219e-05,2]
[356286440,1742178643329,-8193.03741324,8.767e-05,2]
[356286441,1742178643477,-17909.61109949,8.767e-05,2]
[356286451,1742178646296,-11498.2692764,8.767e-05,2]
[356286452,1742178646308,-11000.0,8.767e-05,2]
[356286453,1742178646353,-15829.86781172,8.767e-05,2]
[356286454,1742178646363,-615.04,8.767e-05,2]
[356286455,1742178646373,-500.0,8.767e-05,2]
[356286456,1742178646382,-500.0,8.767e-05,2]
[356286457,1742178646392,-3633.33,8.767e-05,2]
[356286458,1742178646402,-548.78,8.767e-05,2]
[356286459,1742178646412,-514.92337622,8.767e-05,2]
[356286460,1742178646422,-500.0,8.767e-05,2]
[356286461,1742178646434,-2591.17,8.767e-05,2]
[356286462,1742178646444,-500.0,8.767e-05,2]
[356286463,1742178646453,-5986.12,8.767e-05,2]
[356286464,1742178646462,-5731.87,8.767e-05,2]
[356286465,1742178646472,-500.0,8.767e-05,2]
[356286466,1742178646481,-8760.36,8.767e-05,2]
[356286467,1742178646491,-500.0,8.767e-05,2]
[356286468,1742178646501,-500.0,8.767e-05,2]
[356286469,1742178646511,-7946.78,8.767e-05,2]
[356286470,1742178646521,-881.03,8.767e-05,2]
[356286471,1742178646531,-508.7762231,8.767e-05,2]
[356286472,1742178646541,-500.0,8.767e-05,2]
[356286473,1742178646551,-1920.2,8.767e-05,2]
[356286474,1742178646560,-718.46,8.767e-05,2]
[356286475,1742178646570,-500.0,8.767e-05,2]
[356286476,1742178646579,-500.0,8.767e-05,2]
[356286477,1742178646589,-892.59,8.767e-05,2]
[356286478,1742178646598,-765.13,8.767e-05,2]
[356286479,1742178646608,-500.0,8.767e-05,2]
[356286480,1742178646618,-800.44,8.767e-05,2]
[356286481,1742178646628,-500.0,8.767e-05,2]
[356286482,1742178646638,-312.77534761,8.767e-05,2]
[356286483,1742178646647,-1191.41,8.767e-05,2]
[356286484,1742178646657,-500.0,8.767e-05,2]
[356286485,1742178646666,-500.0,8.767e-05,2]
[356286486,1742178646675,-500.0,8.767e-05,2]
[356286487,1742178646686,-500.0,8.767e-05,2]
[356286488,1742178646695,-500.0,8.767e-05,2]
[356286489,1742178646704,-500.0,8.767e-05,2]
[356286490,1742178646714,-3821.59,8.767e-05,2]
[356286491,1742178646724,-758.2,8.767e-05,2]
[356286492,1742178646733,-500.0,8.767e-05,2]
[356286493,1742178646743,-454.48265973,8.767e-05,2]
[356286494,1742178646752,-1202.97,8.767e-05,2]
[356286495,1742178646761,-11342.36,8.767e-05,2]
[356286496,1742178646771,-661.08,8.767e-05,2]
[356286497,1742178646780,-500.0,8.767e-05,2]
[356286498,1742178646789,-674.14,8.767e-05,2]
[356286499,1742178646799,-500.0,8.767e-05,2]
[356286500,1742178646808,-1290.56,8.767e-05,2]
[356286501,1742178646818,-500.0,8.767e-05,2]
[356286502,1742178646827,-1460.7,8.767e-05,2]
[356286503,1742178646836,-2349.57,8.767e-05,2]
[356286504,1742178646846,-500.0,8.767e-05,2]
[356286505,1742178646855,-587.7,8.767e-05,2]
[356286506,1742178646864,-500.0,8.767e-05,2]
[356286507,1742178646874,-500.0,8.767e-05,2]
[356286508,1742178646883,-349.8300315,8.767e-05,2]
[356286509,1742178646892,-796.85944493,8.818e-05,2]
[356286510,1742178646903,-420.0,8.82e-05,2]
[356286511,1742178646913,-500.0,8.909e-05,2]
[356286512,1742178646923,-6922.93545445,8.923e-05,2]
[356286513,1742178646934,-500.0,8.957e-05,2]
[356286514,1742178646944,-500.0,8.957e-05,2]
[356286515,1742178646954,-500.0,8.957e-05,2]
[356286516,1742178646963,-500.0,8.957e-05,2]
[356286517,1742178646973,-500.0,8.957e-05,2]
[356286518,1742178646982,-500.0,8.957e-05,2]
[356286519,1742178646992,-500.0,8.957e-05,2]
[356286520,1742178647002,-500.0,8.971e-05,2]
[356286521,1742178647011,-500.0,8.971e-05,2]
[356286522,1742178647021,-501.5404122,8.971e-05,2]
[356286523,1742178647030,-508.4699758,8.971e-05,2]
[356286524,1742178647040,-500.0,8.971e-05,2]
[356286525,1742178647050,-500.0,8.971e-05,2]
[356286526,1742178647060,-1229.11872686,9e-05,2]
[356286527,1742178647069,-609.60249117,9e-05,2]
[356286528,1742178647079,-1993.84,9e-05,2]
[356286529,1742178647089,-557.1796201,9.041e-05,2]
[356286530,1742178647099,-500.0,9.041e-05,2]
[356286531,1742178647111,-625.3,9.041e-05,2]
[356286532,1742178647122,-771.12,9.041e-05,2]
[356286533,1742178647131,-500.0,9.041e-05,2]
[356286534,1742178647141,-365.57342018,9.041e-05,2]
[356286535,1742178647154,-500.0,9.041e-05,2]
[356286536,1742178647164,-151.0,9.041e-05,2]
[356286537,1742178647173,-151.0,9.041e-05,2]
[356286538,1742178647185,-151.0,9.041e-05,2]
[356286539,1742178647196,-500.0,9.041e-05,2]
[356286540,1742178647206,-500.0,9.041e-05,2]
[356286541,1742178647215,-500.0,9.041e-05,2]
[356286542,1742178647224,-500.0,9.041e-05,2]
[356286543,1742178647234,-500.0,9.041e-05,2]
[356286544,1742178647244,-500.0,9.041e-05,2]
[356286545,1742178647253,-500.0,9.041e-05,2]
[356286546,1742178647262,-495.43557174,9.041e-05,2]
[356286547,1742178647272,-500.0,9.041e-05,2]
[356286548,1742178647281,-500.0,9.041e-05,2]